bitfinex/quotes_BTCUSD_20240918
["timestamp","ask_amount","ask_price","bid_price","bid_amount"]
[1726631662760,1.59489816,60694.0,60693.0,0.001648]
[1726631663396,1.92441916,60694.0,60693.0,0.001648]
[1726631663605,1.62489816,60694.0,60693.0,0.001648]
[1726631664462,1.95441916,60694.0,60693.0,0.001648]
[1726631664892,1.59489816,60694.0,60693.0,0.001648]
[1726631665569,1.49709816,60694.0,60693.0,0.001648]
[1726631666044,1.52295315,60694.0,60693.0,0.001648]
[1726631667137,1.52295315,60694.0,60693.0,0.00099268]
[1726631667780,1.46051684,60694.0,60693.0,0.00099268]
[1726631669726,1.52295315,60694.0,60693.0,0.00099268]
[1726631670097,1.85247415,60694.0,60693.0,0.00099268]
[1726631670505,1.94407415,60694.0,60693.0,0.00099268]
[1726631672167,1.97407415,60694.0,60693.0,0.00099268]
[1726631672952,1.94821916,60694.0,60693.0,0.00099268]
[1726631675457,1.91821916,60694.0,60693.0,0.00099268]
[1726631675684,1.82661916,60694.0,60693.0,0.00099268]
[1726631677570,1.85247396,60694.0,60693.0,0.00099268]
[1726631680332,1.97957396,60694.0,60693.0,0.00099268]
[1726631681603,1.82905395,60694.0,60693.0,0.00099268]
[1726631681905,2.30909496,60694.0,60693.0,0.00099268]
[1726631682778,2.18086701,60688.0,60687.0,0.001648]
[1726631683013,2.22111779,60688.0,60687.0,0.001648]
[1726631683260,2.23287924,60688.0,60687.0,0.001648]
[1726631684231,2.23787924,60688.0,60687.0,0.001648]
[1726631684465,2.24387924,60688.0,60687.0,0.001648]
[1726631685394,2.23887924,60688.0,60687.0,0.001648]
[1726631685629,1.90932524,60688.0,60687.0,0.001648]
[1726631685860,1.91632524,60688.0,60687.0,0.001648]
[1726631686124,1.92610191,60688.0,60687.0,0.001648]
[1726631686363,1.95196005,60688.0,60687.0,0.001648]
[1726631687062,1.95196005,60688.0,60687.0,0.00099732]
[1726631690793,2.19404563,60688.0,60687.0,0.00099732]
[1726631691005,2.39051405,60688.0,60687.0,0.00099732]
[1726631691242,2.39216205,60688.0,60687.0,0.00099732]
[1726631692325,2.38516205,60688.0,60687.0,0.00099732]
[1726631693007,2.36130391,60688.0,60687.0,0.00099732]
[1726631693225,2.36930391,60688.0,60687.0,0.00099732]
[1726631693445,2.38330391,60688.0,60687.0,0.00099732]
[1726631693684,2.35530391,60688.0,60687.0,0.00099732]
[1726631693896,2.36930391,60688.0,60687.0,0.00099732]
[1726631694113,2.38330391,60688.0,60687.0,0.00099732]
[1726631696335,2.40916403,60688.0,60687.0,0.00099732]
[1726631696590,2.32816403,60688.0,60687.0,0.00099732]
[1726631697381,2.31416403,60688.0,60687.0,0.00099732]
[1726631697871,2.30016403,60688.0,60687.0,0.00099732]
[1726631698375,2.31416403,60688.0,60687.0,0.00099732]
[1726631698877,2.32816403,60688.0,60687.0,0.00099732]
[1726631699588,2.31416403,60688.0,60687.0,0.00099732]
[1726631699822,2.32816403,60688.0,60687.0,0.00099732]
[1726631700366,2.31416403,60688.0,60687.0,0.00099732]
[1726631700589,2.30016403,60688.0,60687.0,0.00099732]
[1726631700792,2.31416403,60688.0,60687.0,0.00099732]
[1726631701001,2.31616403,60688.0,60687.0,3.2e-07]
[1726631701231,2.31416403,60688.0,60687.0,3.2e-07]
[1726631701454,2.32816403,60688.0,60687.0,3.2e-07]
[1726631702330,2.31416403,60688.0,60687.0,3.2e-07]
[1726631702971,2.30230391,60688.0,60687.0,3.2e-07]
[1726631703183,2.28830391,60688.0,60687.0,3.2e-07]
[1726631703614,2.30230391,60688.0,60687.0,3.2e-07]
[1726631704387,2.28830391,60688.0,60687.0,3.2e-07]
[1726631704620,2.29030391,60688.0,60687.0,3.2e-07]
[1726631705543,2.28830391,60688.0,60687.0,3.2e-07]
[1726631706037,2.25058717,60688.0,60687.0,3.2e-07]
[1726631706557,2.26244644,60688.0,60687.0,3.2e-07]
[1726631706792,2.27644644,60688.0,60687.0,3.2e-07]
[1726631707032,2.26244644,60688.0,60687.0,3.2e-07]
[1726631707263,1.71189527,60684.0,60683.0,0.00325941]
[1726631707496,1.77568913,60684.0,60683.0,0.00325941]
[1726631707953,1.7873704,60684.0,60683.0,0.00325941]
[1726631709599,1.8153704,60684.0,60683.0,0.00325941]
[1726631710898,2.1449464,60684.0,60683.0,0.00325941]
[1726631712233,2.1309464,60684.0,60683.0,0.00325941]
[1726631712656,2.1449464,60684.0,60683.0,0.00325941]
[1726631713156,0.38660727,60678.0,60676.0,0.0032261]
[1726631713382,1.08743188,60678.0,60676.0,0.0032261]
[1726631713609,1.09910956,60678.0,60676.0,0.0032261]
[1726631713840,2.08793356,60678.0,60676.0,0.0032261]
[1726631714064,1.98913029,60678.0,60676.0,0.0032261]
[1726631714289,2.08793356,60678.0,60676.0,0.0032261]
[1726631714735,2.10193356,60678.0,60676.0,0.0032261]
[1726631715918,2.11593356,60678.0,60676.0,0.0032261]
[1726631716066,1.81218685,60678.0,60676.0,0.0032261]
[1726631717896,1.82185596,60678.0,60676.0,0.0032261]
[1726631718940,1.80785596,60678.0,60676.0,0.0032261]
[1726631719391,1.82185596,60678.0,60676.0,0.0032261]
[1726631719606,1.80785596,60678.0,60676.0,0.0032261]
[1726631719808,1.82185596,60678.0,60676.0,0.0032261]
[1726631720672,2.15146396,60678.0,60676.0,0.0032261]
[1726631722947,2.12560267,60678.0,60676.0,0.0032261]
[1726631723160,2.09760267,60678.0,60676.0,0.0032261]
[1726631723367,2.12560267,60678.0,60676.0,0.0032261]
[1726631726160,2.15146421,60678.0,60676.0,0.0032261]
[1726631728829,2.13746421,60678.0,60676.0,0.0032261]
[1726631729265,2.15146421,60678.0,60676.0,0.0032261]
[1726631729662,2.13746421,60678.0,60676.0,0.0032261]
[1726631730113,2.15146421,60678.0,60676.0,0.0032261]
[1726631730472,2.18146421,60678.0,60676.0,0.0032261]
[1726631732761,2.15560267,60678.0,60676.0,0.0032261]
[1726631733176,1.7271914,60678.0,60676.0,0.0032261]
[1726631733406,1.81199467,60678.0,60676.0,0.0032261]
[1726631734125,2.14160267,60678.0,60676.0,0.0032261]
[1726631734386,2.12760267,60678.0,60676.0,0.0032261]
[1726631735242,2.14160267,60678.0,60676.0,0.0032261]
[1726631736033,2.15346413,60678.0,60676.0,0.0032261]
[1726631736248,2.16746413,60678.0,60676.0,0.0032261]
[1726631736868,2.18146413,60678.0,60676.0,0.0032261]
[1726631737285,2.16746413,60678.0,60676.0,0.0032261]
[1726631737488,2.13746413,60678.0,60676.0,0.0032261]
[1726631737649,2.15346413,60678.0,60676.0,0.0032261]
[1726631737823,2.16746413,60678.0,60676.0,0.0032261]
[1726631738733,2.18146413,60678.0,60676.0,0.0032261]
[1726631740152,1.85185613,60678.0,60676.0,0.0032261]
[1726631740773,2.18146413,60678.0,60676.0,0.0032261]
[1726631741126,1.82185613,60678.0,60676.0,0.0032261]
[1726631741336,1.85185613,60678.0,60676.0,0.0032261]
[1726631741758,2.16746413,60678.0,60676.0,0.0032261]
[1726631741980,2.15346413,60678.0,60676.0,0.0032261]
[1726631742224,1.83785613,60678.0,60676.0,0.0032261]
[1726631742712,1.82385613,60678.0,60676.0,0.0032261]
[1726631743031,1.79799467,60678.0,60676.0,0.0032261]
[1726631743389,1.81199467,60678.0,60676.0,0.0032261]
[1726631744901,1.82599467,60678.0,60676.0,0.0032261]
[1726631745130,1.79599467,60678.0,60676.0,0.0032261]
[1726631745369,2.14160267,60678.0,60676.0,0.0032261]
[1726631745829,2.12560267,60678.0,60676.0,0.0032261]
[1726631746018,1.82599467,60678.0,60676.0,0.0032261]
[1726631746280,1.85185642,60678.0,60676.0,0.0032261]
[1726631746753,1.83785642,60678.0,60676.0,0.0032261]
[1726631747176,2.18146442,60678.0,60676.0,0.0032261]
[1726631747823,1.83785642,60678.0,60676.0,0.0032261]
[1726631748050,1.85185642,60678.0,60676.0,0.0032261]
[1726631749127,1.82185642,60678.0,60676.0,0.0032261]
[1726631749561,1.3179707,60678.0,60676.0,0.0032261]
[1726631750235,1.3039707,60678.0,60676.0,0.0032261]
[1726631750451,1.3179707,60678.0,60676.0,0.0032261]
[1726631750677,1.3409707,60678.0,60676.0,0.0032261]
[1726631750862,1.4269707,60678.0,60676.0,0.0032261]
[1726631750988,1.4129707,60678.0,60676.0,0.0032261]
[1726631751426,1.4229707,60678.0,60676.0,0.0032261]
[1726631751631,1.7425787,60678.0,60676.0,0.0032261]
[1726631751850,1.81418731,60678.0,60676.0,0.0032261]
[1726631752052,1.82818731,60678.0,60676.0,0.0032261]
[1726631752269,1.83418731,60678.0,60676.0,0.0032261]
[1726631752698,1.78832556,60678.0,60676.0,0.0032261]
[1726631753109,1.81532556,60678.0,60676.0,0.0032261]
[1726631753326,2.14493356,60678.0,60676.0,0.0032261]
[1726631754584,2.13093356,60678.0,60676.0,0.0032261]
[1726631754793,2.14493356,60678.0,60676.0,0.0032261]
[1726631755635,1.81532556,60678.0,60676.0,0.0032261]
[1726631756056,1.84118698,60678.0,60676.0,0.0032261]
[1726631756475,2.17079498,60678.0,60676.0,0.0032261]
[1726631757545,1.84118698,60678.0,60676.0,0.0032261]
[1726631760430,1.48157898,60678.0,60676.0,0.0032261]
[1726631760934,1.81118698,60678.0,60676.0,0.0032261]
[1726631762174,1.8070723,60678.0,60676.0,0.0032261]
[1726631762906,1.78121088,60678.0,60676.0,0.0032261]
[1726631763873,2.11081888,60678.0,60676.0,0.0032261]
[1726631765541,1.78121088,60678.0,60676.0,0.0032261]
[1726631766257,1.80707252,60678.0,60676.0,0.0032261]
[1726631766985,2.13868052,60678.0,60676.0,0.0032261]
[1726631767225,2.11281888,60678.0,60676.0,0.0032261]
[1726631767451,1.78121088,60678.0,60676.0,0.0032261]
[1726631768448,2.11081888,60678.0,60676.0,0.0032261]
[1726631769723,2.11281888,60678.0,60676.0,0.0032261]
[1726631769939,2.11281888,60678.0,60673.0,0.001648]
[1726631769940,0.38861827,60674.0,60673.0,0.001648]
[1726631770189,0.947115,60671.0,60670.0,0.001648]
[1726631770447,2.20011562,60671.0,60670.0,1e-06]
[1726631770682,1.306855,60666.0,60665.0,0.0039479]
[1726631770915,1.77856986,60666.0,60665.0,0.0039479]
[1726631771161,1.75841471,60666.0,60665.0,0.0039479]
[1726631771401,1.78841471,60666.0,60665.0,0.0039479]
[1726631771644,1.81428068,60666.0,60665.0,0.0039479]
[1726631772773,1.80241471,60666.0,60665.0,0.0039479]
[1726631772997,1.81641471,60666.0,60665.0,0.0039479]
[1726631773436,1.81225525,60666.0,60665.0,0.0039479]
[1726631773876,1.82625525,60666.0,60665.0,0.0039479]
[1726631774094,1.81225525,60666.0,60665.0,0.0039479]
[1726631774560,1.81225525,60666.0,60665.0,0.0047719]
[1726631775000,1.82625525,60666.0,60665.0,0.0047719]
[1726631775967,1.83812111,60666.0,60665.0,0.0047719]
[1726631776235,1.85212111,60666.0,60665.0,0.0047719]
[1726631776683,1.83812111,60666.0,60665.0,0.0047719]
[1726631777147,1.81225525,60666.0,60665.0,0.0047719]
[1726631777365,1.82625525,60666.0,60665.0,0.0047719]
[1726631778791,1.81225525,60666.0,60665.0,0.0047719]
[1726631779036,1.82625525,60666.0,60665.0,0.0047719]
[1726631779495,1.81225525,60666.0,60665.0,0.0047719]
[1726631779764,1.82625525,60666.0,60665.0,0.0047719]
[1726631780233,2.16779292,60666.0,60665.0,0.0047719]
[1726631780648,2.18179292,60666.0,60665.0,0.0047719]
[1726631780975,2.15379292,60666.0,60665.0,0.0047719]
[1726631781168,2.16779292,60666.0,60665.0,0.0047719]
[1726631781380,2.18379292,60666.0,60665.0,0.0047719]
[1726631782316,1.813262,60664.0,60663.0,0.0006489]
[1726631782561,1.97977232,60664.0,60663.0,0.0006489]
[1726631782805,1.98954945,60664.0,60663.0,0.0006489]
[1726631783501,1.98954945,60664.0,60647.0,0.0812939]
[1726631783502,0.38666927,60655.0,60647.0,0.0812939]
[1726631783748,0.76113557,60655.0,60647.0,0.0812939]
[1726631783994,1.42060157,60655.0,60647.0,0.0812939]
[1726631784305,2.08006757,60655.0,60647.0,0.0812939]
[1726631784552,2.08980519,60655.0,60647.0,0.0812939]
[1726631784814,2.08980519,60655.0,60653.0,0.0935]
[1726631784815,1.72433889,60655.0,60653.0,0.0935]
[1726631786205,1.75020746,60655.0,60647.0,0.0812939]
[1726631786460,1.78594076,60655.0,60647.0,0.0812939]
[1726631786692,1.80394076,60655.0,60647.0,0.0812939]
[1726631786928,1.79394076,60655.0,60647.0,0.0812939]
[1726631787167,1.28967119,60655.0,60653.0,0.0904]
[1726631787435,1.41547446,60655.0,60653.0,0.0904]
[1726631787665,1.41547446,60655.0,60654.0,3.400824]
[1726631787910,1.40247446,60655.0,60654.0,3.400824]
[1726631788165,1.38847446,60655.0,60654.0,3.400824]
[1726631788403,1.41547446,60655.0,60654.0,3.400824]
[1726631789773,1.38847446,60655.0,60654.0,3.400824]
[1726631790008,1.41347446,60655.0,60654.0,3.400824]
[1726631790225,1.39947446,60655.0,60654.0,3.400824]
[1726631790645,1.41247446,60655.0,60654.0,3.400824]
[1726631791075,1.40147446,60655.0,60654.0,3.400824]
[1726631791313,1.38847446,60655.0,60654.0,3.400824]
[1726631791518,1.39847446,60655.0,60654.0,3.400824]
[1726631791730,1.41247446,60655.0,60654.0,3.400824]
[1726631792635,1.80994076,60655.0,60654.0,3.400824]
[1726631792844,1.78407219,60655.0,60654.0,3.400824]
[1726631793058,1.76007219,60655.0,60654.0,3.400824]
[1726631793296,1.78507219,60655.0,60654.0,3.400824]
[1726631793506,1.77107219,60655.0,60654.0,3.400824]
[1726631793724,1.77407219,60655.0,60654.0,3.400824]
[1726631794756,2.13380519,60655.0,60654.0,3.400824]
[1726631794964,1.81807219,60655.0,60654.0,3.400824]
[1726631795371,0.86206962,60655.0,60654.0,3.579924]
[1726631795588,0.03773762,60655.0,60654.0,3.579924]
[1726631795831,0.20260362,60655.0,60654.0,3.579924]
[1726631796035,0.028,60655.0,60654.0,3.579924]
[1726631796245,0.20095365,60655.0,60654.0,3.579924]
[1726631796455,0.02208765,60655.0,60654.0,3.579924]
[1726631796862,0.178866,60655.0,60654.0,3.579924]
[1726631797065,0.51765505,60655.0,60654.0,3.579924]
[1726631797489,0.51865505,60655.0,60654.0,3.579924]
[1726631798150,0.51765505,60655.0,60654.0,3.579924]
[1726631798609,0.50365505,60655.0,60654.0,3.579924]
[1726631798840,0.17392205,60655.0,60654.0,3.579924]
[1726631799773,0.00905605,60655.0,60654.0,3.579924]
[1726631800218,0.331369,60658.0,60654.0,3.579924]
[1726631800434,0.164865,60656.0,60654.0,3.579924]
[1726631800872,0.00905247,60655.0,60654.0,3.579924]
[1726631801074,0.164865,60656.0,60654.0,3.579924]
[1726631801290,0.00905247,60655.0,60654.0,3.579924]
[1726631801503,0.164865,60656.0,60654.0,3.579924]
[1726631801719,0.00905247,60655.0,60654.0,3.579924]
[1726631801949,0.164866,60655.0,60654.0,3.579924]
[1726631802482,0.494599,60655.0,60654.0,3.579924]
[1726631802713,0.17392205,60655.0,60654.0,3.579924]
[1726631802927,0.164866,60655.0,60654.0,3.579924]
[1726631803618,0.164864,60656.0,60654.0,3.579924]
[1726631804047,0.00905247,60655.0,60654.0,3.579924]
[1726631804264,0.17391847,60655.0,60654.0,3.579924]
[1726631805131,0.83338447,60655.0,60654.0,3.579924]
[1726631805362,0.50365147,60655.0,60654.0,3.579924]
[1726631807156,0.50465147,60655.0,60654.0,3.579924]
[1726631807633,0.50365147,60655.0,60654.0,3.579924]
[1726631808308,0.00905247,60655.0,60654.0,3.579924]
[1726631808515,0.164865,60656.0,60654.0,3.579924]
[1726631810069,0.164862,60657.0,60654.0,3.579924]
[1726631810937,0.164864,60656.0,60654.0,3.579924]
[1726631813333,0.494599,60655.0,60654.0,3.579924]
[1726631813545,0.17395368,60655.0,60654.0,3.579924]
[1726631813773,0.164866,60655.0,60654.0,3.579924]
[1726631814200,0.50368668,60655.0,60654.0,3.579924]
[1726631814406,0.17395368,60655.0,60654.0,3.579924]
[1726631814616,0.164866,60655.0,60654.0,3.579924]
[1726631815118,0.83441968,60655.0,60654.0,3.579924]
[1726631816399,0.83541968,60655.0,60654.0,3.579924]
[1726631817034,0.00908768,60655.0,60654.0,3.579924]
[1726631817279,0.00908768,60655.0,60654.0,3.98184814]
[1726631817526,0.003,60655.0,60654.0,4.00651529]
[1726631817743,0.001648,60658.0,60655.0,0.164866]
[1726631817969,0.001648,60658.0,60656.0,0.23703767]
[1726631818176,0.001648,60658.0,60657.0,0.21418327]
[1726631818388,0.001648,60658.0,60657.0,0.21237594]
[1726631818894,0.001648,60658.0,60657.0,0.23703958]
[1726631819099,0.001648,60658.0,60657.0,0.26170155]
[1726631819331,0.001648,60658.0,60657.0,0.42661148]
[1726631819547,0.001648,60658.0,60657.0,0.50057471]
[1726631819760,0.001648,60658.0,60657.0,0.42661148]
[1726631820395,0.002648,60658.0,60657.0,0.42331467]
[1726631821044,0.001648,60658.0,60657.0,0.42331467]
[1726631821262,0.003648,60658.0,60657.0,0.47261756]
[1726631821479,0.003648,60658.0,60657.0,0.42331467]
[1726631822137,0.498223,60658.0,60657.0,0.30775152]
[1726631822349,0.01278771,60658.0,60657.0,0.25845367]
[1726631822607,0.003648,60658.0,60657.0,0.25845367]
[1726631823039,0.002648,60658.0,60657.0,0.25845367]
[1726631823260,0.003648,60658.0,60657.0,0.25845367]
[1726631823918,0.001648,60658.0,60657.0,0.25845367]
[1726631824149,0.002648,60658.0,60657.0,0.25845367]
[1726631824582,0.002648,60658.0,60657.0,0.42331467]
[1726631825013,0.003648,60658.0,60657.0,0.25845367]
[1726631825250,0.002648,60658.0,60657.0,0.25845367]
[1726631825477,0.002648,60658.0,60657.0,0.42331467]
[1726631825914,0.001648,60658.0,60657.0,0.42331467]
[1726631826124,0.002648,60658.0,60657.0,0.42331467]
[1726631826567,0.001648,60658.0,60657.0,0.25845367]
[1726631827014,0.002648,60658.0,60657.0,0.25845367]
[1726631827445,0.001648,60658.0,60657.0,0.25845367]
[1726631827680,0.002648,60658.0,60656.0,0.164863]
[1726631828142,0.003648,60658.0,60656.0,0.164863]
[1726631828563,0.003648,60658.0,60654.0,4.02532058]
[1726631828778,0.002648,60658.0,60655.0,0.16305367]
[1726631828992,0.001648,60658.0,60655.0,0.32791967]
[1726631829213,0.002648,60658.0,60655.0,0.32791967]
[1726631829458,0.002648,60658.0,60655.0,0.16305367]
[1726631829889,0.002648,60658.0,60656.0,0.164862]
[1726631830592,0.003648,60658.0,60656.0,0.164862]
[1726631830805,0.002648,60658.0,60656.0,0.164862]
[1726631831258,0.002648,60658.0,60656.0,0.21415558]
[1726631831939,0.001648,60658.0,60656.0,0.21415558]
[1726631832366,0.164861,60657.0,60656.0,0.04929358]
[1726631832585,0.003648,60658.0,60656.0,0.04929358]
[1726631833014,0.00916117,60657.0,60656.0,0.04929358]
[1726631833454,0.002648,60658.0,60656.0,0.04929358]
[1726631833664,0.001,60657.0,60656.0,0.04929358]
[1726631833860,0.01016117,60657.0,60655.0,0.32791767]
[1726631834315,0.001,60657.0,60656.0,0.05012956]
[1726631834551,0.001,60657.0,60656.0,0.000824]
[1726631834815,0.495583,60657.0,60656.0,0.000824]
[1726631835025,0.164861,60657.0,60656.0,0.000824]
[1726631835239,0.17402754,60657.0,60656.0,0.000824]
[1726631835466,0.164861,60657.0,60656.0,0.000824]
[1726631835913,0.165861,60657.0,60656.0,0.05013644]
[1726631836175,0.164861,60657.0,60656.0,0.000824]
[1726631836422,0.165861,60657.0,60656.0,0.05013644]
[1726631836669,0.165861,60657.0,60656.0,0.05014631]
[1726631836670,0.001,60657.0,60656.0,0.05014631]
[1726631836917,0.001,60657.0,60656.0,0.000824]
[1726631837644,0.001,60657.0,60656.0,0.32874167]
[1726631837876,0.002,60657.0,60656.0,0.37806398]
[1726631838329,0.001,60657.0,60656.0,0.32874167]
[1726631838992,0.002,60657.0,60656.0,0.32874167]
[1726631839248,0.003,60657.0,60656.0,0.65846967]
[1726631839468,0.003,60657.0,60656.0,0.73245314]
[1726631839707,0.003,60657.0,60656.0,0.40272514]
[1726631840390,0.003,60657.0,60656.0,0.32874167]
[1726631840850,0.003,60657.0,60656.0,0.40279772]
[1726631841068,0.003,60657.0,60656.0,0.32874167]
[1726631841285,0.003,60657.0,60656.0,0.45204746]
[1726631841506,0.003,60657.0,60656.0,0.45224528]
[1726631841722,0.003,60657.0,60656.0,0.42755076]
[1726631841958,0.003,60657.0,60656.0,0.45224528]
[1726631842203,0.003,60657.0,60656.0,0.23799175]
[1726631842440,0.003,60657.0,60656.0,0.16387767]
[1726631842876,0.001,60657.0,60656.0,0.16387767]
[1726631843122,0.001,60657.0,60656.0,0.23799031]
[1726631843369,0.001,60657.0,60656.0,0.16387767]
[1726631843582,0.001,60657.0,60656.0,0.23799031]
[1726631844008,0.00953428,60657.0,60656.0,0.000824]
[1726631844199,0.60293928,60657.0,60656.0,0.000824]
[1726631844465,0.593405,60657.0,60656.0,0.000824]
[1726631844696,0.60393928,60657.0,60656.0,0.000824]
[1726631844919,0.50611728,60657.0,60656.0,0.000824]
[1726631845147,0.50511728,60657.0,60656.0,0.000824]
[1726631845581,0.50411728,60657.0,60656.0,0.000824]
[1726631846061,0.50511728,60657.0,60656.0,0.05024256]
[1726631846492,0.50611728,60657.0,60656.0,0.05024256]
[1726631846975,0.83583928,60657.0,60656.0,0.05024256]
[1726631847198,0.60393928,60657.0,60656.0,0.000824]
[1726631847419,0.60493928,60657.0,60656.0,0.05024121]
[1726631848317,0.60493928,60657.0,60656.0,0.000824]
[1726631850512,0.93466128,60657.0,60656.0,0.000824]
[1726631850722,0.60493928,60657.0,60656.0,0.000824]
[1726631851138,0.93466128,60657.0,60656.0,0.000824]
[1726631851785,0.93466128,60657.0,60656.0,0.0502501]
[1726631852708,0.93266128,60657.0,60656.0,0.0502501]
[1726631853618,0.93266128,60657.0,60656.0,0.000824]
[1726631854043,1.45758328,60657.0,60656.0,0.000824]
[1726631855567,1.45858328,60657.0,60656.0,0.000824]
[1726631855793,1.45758328,60657.0,60656.0,0.000824]
[1726631856021,1.46858328,60657.0,60656.0,0.000824]
[1726631856476,1.46558328,60657.0,60656.0,0.000824]
[1726631856933,0.83983928,60657.0,60656.0,0.000824]
[1726631857165,0.84483928,60657.0,60656.0,0.000824]
[1726631857395,0.83883928,60657.0,60656.0,0.000824]
[1726631858294,0.84183928,60657.0,60656.0,0.000824]
[1726631858511,0.93513928,60657.0,60656.0,0.000824]
[1726631858721,1.03396128,60657.0,60656.0,0.000824]
[1726631861404,1.36368328,60657.0,60656.0,0.000824]
[1726631862511,1.35868328,60657.0,60656.0,0.000824]
[1726631862751,1.36368328,60657.0,60656.0,0.000824]
[1726631862968,1.36168328,60657.0,60656.0,0.000824]
[1726631863396,1.36668328,60657.0,60656.0,0.000824]
[1726631864082,1.46068328,60657.0,60656.0,0.000824]
[1726631864288,1.46368328,60657.0,60656.0,0.000824]
[1726631865191,1.45868328,60657.0,60656.0,0.000824]
[1726631865404,1.46668328,60657.0,60656.0,0.000824]
[1726631865623,1.45868328,60657.0,60656.0,0.000824]
[1726631865836,1.45568328,60657.0,60656.0,0.000824]
[1726631866055,1.47168328,60657.0,60656.0,0.000824]
[1726631866270,1.49755349,60657.0,60656.0,0.000824]
[1726631869356,1.49055349,60657.0,60656.0,0.000824]
[1726631869785,1.48555349,60657.0,60656.0,0.000824]
[1726631869992,1.49155349,60657.0,60656.0,0.000824]
[1726631872398,1.48201921,60657.0,60656.0,0.000824]
[1726631872609,1.47801921,60657.0,60656.0,0.000824]
[1726631872873,1.446149,60657.0,60656.0,0.000824]
[1726631873086,1.453149,60657.0,60656.0,0.000824]
[1726631873294,1.462149,60657.0,60656.0,0.000824]
[1726631873515,1.455149,60657.0,60656.0,0.000824]
[1726631873908,1.462149,60657.0,60656.0,0.000824]
[1726631874347,1.455149,60657.0,60656.0,0.000824]
[1726631874595,1.446149,60657.0,60656.0,0.000824]
[1726631874828,1.453149,60657.0,60656.0,0.000824]
[1726631875061,1.791871,60657.0,60656.0,0.000824]
[1726631875292,1.476149,60657.0,60656.0,0.000824]
[1726631875534,1.485149,60657.0,60656.0,0.000824]
[1726631875767,1.476149,60657.0,60656.0,0.000824]
[1726631876237,1.50401932,60657.0,60656.0,0.000824]
[1726631876472,1.51101932,60657.0,60656.0,0.000824]
[1726631876903,1.50401932,60657.0,60656.0,0.000824]
[1726631877356,1.51101932,60657.0,60656.0,0.000824]
[1726631877583,1.4978138,60657.0,60656.0,0.000824]
[1726631878506,1.4888138,60657.0,60656.0,0.000824]
[1726631878743,1.4978138,60657.0,60656.0,0.000824]
[1726631879436,1.48801932,60657.0,60656.0,0.000824]
[1726631879915,1.48101932,60657.0,60656.0,0.000824]
[1726631880363,1.48801932,60657.0,60656.0,0.000824]
[1726631880805,1.48101932,60657.0,60656.0,0.000824]
[1726631881056,1.47801932,60657.0,60656.0,0.000824]
[1726631881528,1.48601932,60657.0,60656.0,0.000824]
[1726631882115,1.48520963,60657.0,60656.0,0.000824]
[1726631882886,1.45933931,60657.0,60656.0,0.000824]
[1726631884163,1.45133931,60657.0,60656.0,0.000824]
[1726631884393,1.44533931,60657.0,60656.0,0.000824]
[1726631884648,1.45433931,60657.0,60656.0,0.000824]
[1726631884874,1.46133931,60657.0,60656.0,0.000824]
[1726631886208,1.48720965,60657.0,60656.0,0.000824]
[1726631888024,1.51020965,60657.0,60656.0,0.000824]
[1726631888731,1.83993165,60657.0,60656.0,0.000824]
[1726631888937,1.50120965,60657.0,60656.0,0.000824]
[1726631889156,1.50920965,60657.0,60656.0,0.000824]
[1726631889365,1.49420965,60657.0,60656.0,0.000824]
[1726631889816,1.50020965,60657.0,60656.0,0.000824]
[1726631890276,1.82393165,60657.0,60656.0,0.000824]
[1726631890504,1.50120965,60657.0,60656.0,0.000824]
[1726631891213,1.51020965,60657.0,60656.0,0.000824]
[1726631891659,1.83993165,60657.0,60656.0,0.000824]
[1726631892340,1.51020965,60657.0,60656.0,0.000824]
[1726631892990,1.48433931,60657.0,60656.0,0.000824]
[1726631893203,1.38551731,60657.0,60656.0,0.000824]
[1726631893631,1.48433931,60657.0,60656.0,0.000824]
[1726631893869,1.48598531,60657.0,60656.0,0.000824]
[1726631894098,1.81570731,60657.0,60656.0,0.000824]
[1726631895905,1.79970731,60657.0,60656.0,0.000824]
[1726631896081,1.83257804,60657.0,60656.0,0.000824]
[1726631896323,1.51185604,60657.0,60656.0,0.000824]
[1726631897218,1.84157804,60657.0,60656.0,0.000824]
[1726631897441,1.51185604,60657.0,60656.0,0.000824]
[1726631897882,1.48885604,60657.0,60656.0,0.000824]
[1726631899239,1.39555604,60657.0,60656.0,0.000824]
[1726631900842,1.72527804,60657.0,60656.0,0.000824]
[1726631901106,1.39555604,60657.0,60656.0,0.000824]
[1726631902048,1.72527804,60657.0,60656.0,0.000824]
[1726631902301,1.39555604,60657.0,60656.0,0.000824]
[1726631902805,1.36968531,60657.0,60656.0,0.000824]
[1726631903058,1.69940731,60657.0,60656.0,0.000824]
[1726631903745,1.36968531,60657.0,60656.0,0.000824]
[1726631904424,1.69940731,60657.0,60656.0,0.000824]
[1726631904872,1.72240731,60657.0,60656.0,0.000824]
[1726631905093,1.39268531,60657.0,60656.0,0.000824]
[1726631906384,1.72240731,60657.0,60656.0,0.000824]
[1726631907516,1.74827811,60657.0,60656.0,0.000824]
[1726631910247,1.74127811,60657.0,60656.0,0.000824]
[1726631910680,1.73227811,60657.0,60656.0,0.000824]
[1726631910939,1.74427811,60657.0,60656.0,0.000824]
[1726631911168,1.73227811,60657.0,60656.0,0.000824]
[1726631911682,1.75027811,60657.0,60656.0,0.000824]
[1726631912148,1.74127811,60657.0,60656.0,0.000824]
[1726631912392,1.74827811,60657.0,60656.0,0.000824]
[1726631912883,1.72240731,60657.0,60656.0,0.000824]
[1726631915774,1.71540731,60657.0,60656.0,0.000824]
[1726631916018,1.72640731,60657.0,60656.0,0.000824]
[1726631916261,1.7522787,60657.0,60656.0,0.000824]
[1726631916493,1.7412787,60657.0,60656.0,0.000824]
[1726631916972,1.7322787,60657.0,60656.0,0.000824]
[1726631917679,1.7462787,60657.0,60656.0,0.000824]
[1726631917932,1.7602787,60657.0,60656.0,0.000824]
[1726631918171,1.7462787,60657.0,60656.0,0.000824]
[1726631918415,1.7602787,60657.0,60656.0,0.000824]
[1726631918657,1.7322787,60657.0,60656.0,0.000824]
[1726631918889,1.7432787,60657.0,60656.0,0.000824]
[1726631919416,1.7322787,60657.0,60656.0,0.000824]
[1726631919908,1.7582787,60657.0,60656.0,0.000824]
[1726631920143,1.7442787,60657.0,60656.0,0.000824]
[1726631920618,1.7582787,60657.0,60656.0,0.000824]
[1726631921327,1.7462787,60657.0,60656.0,0.000824]
[1726631921581,1.7582787,60657.0,60656.0,0.000824]
[1726631922055,1.7462787,60657.0,60656.0,0.000824]
[1726631922571,1.7582787,60657.0,60656.0,0.000824]
[1726631922806,1.73240731,60657.0,60656.0,0.000824]
[1726631925692,1.73220889,60657.0,60656.0,0.000824]